bitfinex/quotes_SOLUSD_20260211
["timestamp","ask_amount","ask_price","bid_price","bid_amount"]
[1770768001234,0.09999987,83.103,82.987,5.36086188]
[1770768001434,0.09999987,83.103,82.991,5.36086188]
[1770768001617,0.09999987,83.103,82.999,5.36086188]
[1770768001817,0.09999987,83.103,83.003,5.36086188]
[1770768002025,0.09999987,83.103,83.008,0.48663767]
[1770768003640,0.09999987,83.103,83.018,0.48663767]
[1770768004537,0.09999987,83.103,83.027,5.36086188]
[1770768004735,0.19999986,83.109,83.031,5.36086188]
[1770768004942,0.19999986,83.109,83.038,0.48663767]
[1770768005642,0.19999985,83.108,83.04,0.48663767]
[1770768007054,12.03268076,83.107,83.041,42.14785467]
[1770768007250,0.19999985,83.106,83.043,0.48663767]
[1770768007550,0.1,83.11,83.045,0.48663767]
[1770768007730,6.38826284,83.14,83.065,0.48663767]
[1770768007731,0.49276967,83.126,83.065,0.48663767]
[1770768008051,0.49276967,83.123,83.069,0.48663767]
[1770768008432,12.02804941,83.139,83.068,0.48663767]
[1770768008732,42.09817293,83.139,83.07,0.48663767]
[1770768009127,0.1,83.14,83.074,0.48663767]
[1770768009346,0.1,83.14,83.085,5.36086188]
[1770768009547,0.1,83.14,83.088,0.48663767]
[1770768010333,0.39999992,83.139,83.088,0.48663767]
[1770768010548,0.39999992,83.139,83.075,0.48663767]
[1770768010858,0.39999992,83.137,83.073,0.48663767]
[1770768011032,2.61391632,83.136,83.073,0.48663767]
[1770768011340,0.39999992,83.133,83.073,0.48663767]
[1770768012047,0.39999992,83.133,83.075,0.48663767]
[1770768013329,0.39999992,83.131,83.075,0.48663767]
[1770768014452,0.39999992,83.129,83.075,0.48663767]
[1770768016753,0.39999991,83.127,83.075,0.48663767]
[1770768019155,0.39999991,83.125,83.075,0.48663767]
[1770768019656,0.39999991,83.125,83.055,37.7]
[1770768019657,0.39999991,83.125,83.057,0.48663767]
[1770768019860,0.39999991,83.123,83.07,0.48663767]
[1770768021663,0.3999999,83.121,83.074,0.46915236]
[1770768024364,0.3999999,83.119,83.075,0.46920237]
[1770768026470,0.39999989,83.117,83.077,0.46920237]
[1770768029864,0.39999989,83.115,83.079,0.46920237]
[1770768031370,0.39999989,83.113,83.081,0.46920237]
[1770768033876,0.39999988,83.111,83.083,0.46920237]
[1770768035668,12.03195687,83.112,83.083,0.46920237]
[1770768035862,0.39999988,83.111,83.083,0.46920237]
[1770768037268,0.39999988,83.109,83.083,0.46920237]
[1770768037956,0.39999988,83.109,83.085,0.46920237]
[1770768038776,12.03224642,83.11,83.085,0.46920237]
[1770768039380,0.39999988,83.119,83.086,12.03572202]
[1770768039962,0.39999988,83.119,83.086,12.50492439]
[1770768040157,0.39999988,83.119,83.087,0.46920237]
[1770768041189,12.03108833,83.118,83.088,12.03543231]
[1770768041363,0.39999987,83.117,83.088,12.03543231]
[1770768042059,0.39999987,83.117,83.088,12.50463468]
[1770768044005,0.39999987,83.117,83.08,30.09130779]
[1770768044006,0.39999987,83.115,83.089,0.46920237]
[1770768046478,0.39999987,83.12,83.091,0.46920237]
[1770768047687,0.39999987,83.12,83.081,12.03632569]
[1770768047688,0.39999987,83.12,83.082,0.46920237]
[1770768049381,0.39999987,83.12,83.069,30.09521167]
[1770768049382,0.39999986,83.118,83.084,0.46920237]
[1770768051503,12.03123308,83.117,83.086,0.48728408]
[1770768054093,0.39999986,83.119,83.087,12.03557716]
[1770768054299,0.39999986,83.119,83.088,0.48728408]
[1770768054984,0.39999986,83.128,83.088,0.48728408]
[1770768056787,0.39999986,83.126,83.088,0.48728408]
[1770768057104,0.39999986,83.126,83.09,0.48728408]
[1770768058400,0.39999985,83.124,83.09,0.48728408]
[1770768059394,0.39999985,83.124,83.039,5.36086188]
[1770768059395,0.39999985,83.119,83.051,0.48728408]
[1770768059707,0.39999985,83.117,83.051,0.48728408]
[1770768060284,0.39999985,83.115,83.053,0.48728408]
[1770768060480,0.39999985,83.11,83.053,0.48728408]
[1770768061886,0.39999985,83.104,83.053,0.48728408]
[1770768062086,0.39999985,83.104,83.055,0.48728408]
[1770768063010,42.11387591,83.108,83.055,0.48728408]
[1770768063608,42.51387576,83.108,83.055,0.48728408]
[1770768063905,42.51387576,83.108,83.057,0.48728408]
[1770768064203,42.51387576,83.108,83.059,0.48728408]
[1770768064707,0.39999985,83.107,83.059,0.48728408]
[1770768065991,0.39999985,83.105,83.061,0.48728408]
[1770768066193,0.39999985,83.102,83.032,0.48728408]
[1770768066397,0.39999985,83.1,83.042,0.48728408]
[1770768066813,0.39999985,83.095,83.042,0.48728408]
[1770768066988,0.39999985,83.095,83.023,0.48728408]
[1770768066989,12.36834195,83.095,83.023,0.48728408]
[1770768067311,0.39999984,83.09,83.023,0.48728408]
[1770768067508,0.39999984,83.089,83.023,0.48728408]
[1770768067808,0.39999984,83.085,83.023,0.48728408]
[1770768068814,0.39999984,83.08,83.023,0.48728408]
[1770768070817,0.39999984,83.075,83.023,0.48728408]
[1770768072394,5.13032502,83.071,83.023,0.48728408]
[1770768072602,0.39999984,83.066,83.023,0.48728408]
[1770768074028,0.39999984,83.064,83.023,0.48728408]
[1770768074611,0.39999984,83.062,83.023,0.48728408]
[1770768077815,0.39999984,83.06,83.023,0.48728408]
[1770768079606,0.39999983,83.058,83.023,0.48728408]
[1770768080795,0.39999983,83.056,83.023,0.48728408]
[1770768082593,0.39999983,83.051,82.997,0.48536406]
[1770768082799,42.14531704,83.046,82.997,0.48536406]
[1770768084613,0.39999983,83.045,82.997,0.48536406]
[1770768085820,0.39999983,83.043,82.998,0.47108884]
[1770768086623,0.39999983,83.041,82.998,0.47108884]
[1770768088528,0.39999983,83.039,82.998,0.47108884]
[1770768091424,0.39999982,83.037,82.998,0.47108884]
[1770768092012,48.12,83.036,82.998,0.47108884]
[1770768092214,0.39999982,83.035,82.998,0.47108884]
[1770768092616,12.04325938,83.034,83.0,0.47108884]
[1770768093827,12.04195416,83.043,83.0,0.47108884]
[1770768094933,12.04195416,83.043,83.002,0.47108884]
[1770768095310,12.44195398,83.043,83.002,0.47108884]
[1770768095513,0.39999982,83.042,83.002,0.47108884]
[1770768097329,12.04224419,83.041,83.003,12.0477573]
[1770768097533,12.04224419,83.041,83.004,0.47108884]
[1770768097733,12.44224401,83.041,83.004,0.47108884]
[1770768098531,0.39999982,83.04,83.004,0.47108884]
[1770768101832,0.39999982,83.038,83.004,0.47108884]
[1770768102518,0.39999982,83.038,83.006,0.47108884]
[1770768104340,12.04282428,83.037,83.008,0.47108884]
[1770768106225,12.44282409,83.037,83.008,0.47108884]
[1770768106425,0.39999981,83.036,83.008,0.47108884]
[1770768109442,0.39999981,83.034,83.008,0.47108884]
[1770768111943,0.39999981,83.038,83.01,0.452683]
[1770768114320,0.39999981,83.036,83.01,0.452683]
[1770768117523,42.54582435,83.045,83.01,0.452683]
[1770768117837,0.39999981,83.044,83.01,0.452683]
[1770768122024,42.54683939,83.043,83.01,0.452683]
[1770768122224,0.39999981,83.042,83.01,0.452683]
[1770768124745,12.04224419,83.041,83.012,0.452683]
[1770768125045,12.04181181,83.044,83.012,0.452683]
[1770768126842,12.04093919,83.05,83.014,0.452683]
[1770768127226,0.3999998,83.049,83.014,0.452683]
[1770768127955,12.04122916,83.048,83.016,0.452683]
[1770768129350,0.3999998,83.047,83.016,0.452683]
[1770768130250,0.3999998,83.047,83.018,0.452683]
[1770768133161,0.3999998,83.045,83.018,0.452683]
[1770768136666,0.3999998,83.056,83.02,0.452683]
[1770768136848,30.49839926,83.061,83.02,0.452683]
[1770768137054,12.03977943,83.058,83.02,0.452683]
[1770768137441,12.03876482,83.065,83.02,0.452683]
[1770768138347,12.03820216,83.069,83.02,0.452683]
[1770768138960,0.3999998,83.076,83.022,0.452683]
[1770768141353,0.3999998,83.076,83.013,108.35115509]
[1770768141354,12.03731567,83.075,83.024,0.47307629]
[1770768141879,0.3999998,83.082,83.024,0.47307629]
[1770768142170,12.03586688,83.085,83.027,0.47307629]
[1770768143282,12.03615661,83.083,83.028,42.15445391]
[1770768143485,12.43282534,83.106,83.038,0.45339863]
[1770768143774,12.03282554,83.106,83.038,0.45339863]
[1770768144148,12.43282534,83.106,83.038,0.45339863]
[1770768144679,6.28433493,83.126,83.056,0.45339863]
[1770768144680,0.3999998,83.124,83.056,0.45339863]
[1770768144851,0.3999998,83.124,83.059,0.45339863]
[1770768146277,0.3999998,83.122,83.061,0.45339863]
[1770768146479,0.3999998,83.122,83.06,42.13821333]
[1770768146480,12.42964406,83.128,83.069,0.45339863]
[1770768147351,12.02964426,83.128,83.071,0.45339863]
[1770768147555,12.02964426,83.128,83.074,0.45339863]
[1770768148161,0.39999979,83.127,83.074,0.45339863]
[1770768148763,12.02964426,83.128,83.074,0.45339863]
[1770768149580,0.39999979,83.131,83.079,0.45339863]
[1770768153561,0.39999979,83.129,83.081,0.45339863]
[1770768153878,0.39999979,83.129,83.083,0.45339863]
[1770768155190,0.39999979,83.146,83.085,5.13032502]
[1770768155365,0.39999979,83.153,83.09,0.45339863]
[1770768155682,6.28249811,83.161,83.1,0.45339863]
[1770768155683,12.02529501,83.159,83.1,0.45339863]
[1770768155868,0.4834425,83.167,83.108,0.45339863]
[1770768156060,30.05510174,83.181,83.108,0.45339863]
[1770768156061,0.4834425,83.162,83.108,0.45339863]
[1770768156263,0.4834425,83.162,83.11,0.45339863]
[1770768156962,12.02391546,83.168,83.11,0.45339863]
[1770768156963,0.4834425,83.156,83.11,0.45339863]
[1770768157384,0.4834425,83.156,83.112,0.45339863]
[1770768157593,0.4834425,83.156,83.114,0.45339863]
[1770768157798,0.4834425,83.148,83.116,0.45339863]
[1770768159569,0.4834425,83.148,83.118,0.45339863]
[1770768160492,0.4834425,83.148,83.119,12.03094358]
[1770768160694,0.4834425,83.148,83.12,0.45339863]
[1770768161080,0.4834425,83.146,83.12,0.45339863]
[1770768161274,0.4834425,83.148,83.12,0.45339863]
[1770768162877,0.4834425,83.148,83.122,0.45339863]
[1770768163384,0.4834425,83.146,83.117,12.0311787]
[1770768163588,0.4834425,83.146,83.12,12.03074036]
[1770768163991,0.4834425,83.146,83.12,12.48413899]
[1770768164190,0.4834425,83.146,83.121,0.45339863]
[1770768167286,0.4834425,83.146,83.122,12.03050937]
[1770768167688,0.4834425,83.144,83.121,0.45339863]
[1770768167910,0.4834425,83.144,83.122,12.03050937]
[1770768168808,0.4834425,83.144,83.118,12.0310558]
[1770768169796,0.4834425,83.144,83.117,12.48463171]
[1770768170197,0.4834425,83.144,83.104,30.08276436]
[1770768170198,0.48696129,83.142,83.104,12.03304664]
[1770768170798,0.48696129,83.142,83.101,0.46412038]
[1770768171308,0.48696129,83.142,83.102,12.03330982]
[1770768171511,0.48696129,83.142,83.103,0.46412038]
[1770768171717,0.48696129,83.14,83.105,12.03291794]
[1770768171928,0.48696129,83.14,83.105,12.49703832]
[1770768172413,0.48696129,83.14,83.106,0.46412038]
[1770768174212,0.48696129,83.138,83.108,0.46412038]
[1770768174407,12.02798943,83.14,83.108,0.46412038]
[1770768174815,0.48696129,83.143,83.108,0.46412038]
[1770768175003,103.18696129,83.148,83.108,0.46412038]
[1770768175204,102.7,83.148,83.108,0.46412038]
[1770768175405,0.48696129,83.148,83.108,0.46412038]
[1770768177332,0.48696129,83.146,83.109,12.03239119]
[1770768177503,0.48696129,83.146,83.11,0.46412038]
[1770768178028,0.48696129,83.146,83.099,0.46412038]
[1770768178410,0.48696129,83.146,83.103,12.03322374]
[1770768178936,0.48696129,83.146,83.093,12.03461506]
[1770768179430,0.48696129,83.144,83.093,12.03461506]
[1770768179609,0.48696129,83.144,83.093,12.49873544]
[1770768180226,0.48696129,83.144,83.094,0.46412038]
[1770768182136,0.48696129,83.139,83.082,0.46412038]
[1770768182329,0.48696129,83.137,83.087,0.46412038]
[1770768183207,150.76,83.138,83.087,0.46412038]
[1770768183208,0.48696129,83.135,83.087,0.46412038]
[1770768184012,0.48696129,83.135,83.089,0.46412038]
[1770768185629,0.48696129,83.133,83.091,0.46412038]
[1770768187436,0.48696129,83.131,83.093,0.46412038]
[1770768190616,0.48696129,83.129,83.095,0.46412038]
[1770768192836,0.48696129,83.127,83.095,0.46412038]
[1770768193734,0.48696129,83.127,83.094,12.03456326]
[1770768194142,0.48696129,83.127,83.094,12.49868364]
[1770768194331,0.48696129,83.127,83.095,0.46412038]
[1770768195324,0.48696129,83.127,83.074,48.06]
[1770768195325,0.48696129,83.125,83.089,0.46412038]
[1770768195519,0.48696129,83.125,83.09,0.46412038]
[1770768195720,0.48696129,83.125,83.093,0.46412038]
[1770768195920,0.48696129,83.125,83.062,60.1955139]
[1770768195921,0.48696129,83.123,83.068,12.03827414]
[1770768196137,0.48696129,83.118,83.061,0.46412038]
[1770768196337,5.13032502,83.119,83.061,0.46412038]
[1770768196338,0.48696129,83.116,83.061,0.46412038]
[1770768196532,0.48696129,83.116,83.055,0.46412038]
[1770768197041,0.48696129,83.116,83.057,0.46412038]
[1770768197339,0.48696129,83.111,83.042,0.46412038]
[1770768197640,0.48696129,83.106,83.042,0.46412038]
[1770768197838,0.48696129,83.106,83.043,0.46412038]
[1770768198348,0.48696129,83.101,83.043,0.46412038]
[1770768199249,0.48696129,83.099,83.045,0.46412038]
[1770768199424,12.03319001,83.104,83.045,0.46412038]
[1770768199839,12.03319001,83.104,83.044,42.14633206]
[1770768199840,12.03319001,83.104,83.047,0.46412038]
[1770768200022,0.47344519,83.103,83.047,0.46412038]
[1770768202130,12.03340473,83.102,83.049,0.462123]
[1770768202736,12.03340473,83.102,83.05,48.08]
[1770768202924,12.03340473,83.102,83.051,0.462123]
[1770768203126,12.03166734,83.114,83.051,0.462123]
[1770768203325,12.52152789,83.114,83.053,0.45224986]
[1770768203934,0.48986055,83.113,83.055,0.45224986]
[1770768204925,0.48986055,83.122,83.06,0.45224986]
[1770768205237,12.52036992,83.122,83.06,0.45224986]
[1770768206242,0.48986055,83.121,83.06,0.45224986]
[1770768206920,12.03079884,83.12,83.065,0.45224986]
[1770768209225,0.48986055,83.122,83.07,0.45224986]
[1770768211227,0.48986055,83.12,83.072,0.45224986]
[1770768212823,0.48986055,83.118,83.074,0.45224986]
[1770768217141,12.03123308,83.117,83.075,12.03731567]
[1770768217347,0.48986055,83.116,83.076,0.45224986]
[1770768224550,30.07663526,83.121,83.075,42.13060486]
[1770768224551,0.48986055,83.114,83.078,0.45224986]
[1770768225353,0.48986055,83.128,83.078,0.45224986]
[1770768226834,0.48986055,83.128,83.08,0.45224986]
[1770768227048,12.12652077,83.15,83.097,0.45224986]
[1770768227249,0.1,83.15,83.099,0.45224986]
[1770768228947,0.1,83.15,83.098,53.44086188]
[1770768228948,0.58986055,83.15,83.101,0.45224986]
[1770768229138,0.74764615,83.149,83.101,0.45224986]
[1770768229540,0.48986055,83.148,83.101,0.45224986]
[1770768230948,0.48986055,83.148,83.103,0.49193685]
[1770768232168,0.48986055,83.148,83.105,0.49193685]
[1770768232358,0.2577856,83.149,83.105,0.49193685]
[1770768233268,0.2577856,83.149,83.107,0.49193685]
[1770768233666,0.2577856,83.149,83.11,0.49193685]
[1770768235168,0.2577856,83.149,83.112,0.49193685]
[1770768235475,0.2577856,83.149,83.114,0.49193685]
[1770768237366,0.2577856,83.149,83.113,48.06]
[1770768237367,0.2577856,83.149,83.116,0.49193685]
[1770768238147,0.47558496,83.148,83.116,0.49193685]
[1770768238869,0.2577856,83.149,83.116,0.49193685]
[1770768239450,0.2577856,83.149,83.118,0.49193685]
[1770768239650,0.2577856,83.149,83.12,0.49193685]
[1770768240265,0.47558496,83.148,83.122,0.49193685]
[1770768241469,0.47558496,83.148,83.121,48.06]
[1770768241470,0.47558496,83.146,83.121,48.06]
[1770768241669,0.47558496,83.146,83.107,12.03264899]
[1770768241854,0.47558496,83.146,83.093,0.49193685]
[1770768242053,0.47558496,83.146,83.098,12.03388907]
[1770768242249,0.47558496,83.146,83.101,0.49193685]
[1770768242446,0.47558496,83.146,83.107,0.49193685]
[1770768242668,0.73337056,83.149,83.124,0.49193685]
[1770768243774,0.73337056,83.149,83.126,0.49193685]
[1770768243775,0.2577856,83.149,83.126,0.49193685]
[1770768247884,0.2577856,83.149,83.125,42.10526314]
[1770768247885,0.2577856,83.149,83.127,12.02978574]
[1770768248086,0.2577856,83.149,83.128,0.49193685]
[1770768249981,0.1,83.15,83.129,42.10323713]
[1770768250196,12.02414282,83.167,83.131,0.49193685]
[1770768250393,0.47558496,83.169,83.131,0.49193685]
[1770768250685,0.47558496,83.169,83.133,0.49193685]
[1770768251272,0.47558496,83.167,83.135,0.49193685]
[1770768251870,0.47558496,83.167,83.137,0.49193685]
[1770768252264,0.47558496,83.167,83.139,0.49193685]
[1770768252468,0.47558496,83.177,83.139,0.49193685]
[1770768253377,0.47558496,83.177,83.141,0.49193685]
[1770768253777,0.47558496,83.175,83.141,0.49193685]
[1770768254198,0.47558496,83.175,83.143,0.49193685]
[1770768255383,0.47558496,83.173,83.143,0.49193685]
[1770768257481,0.47558496,83.171,83.144,0.49193685]
[1770768260091,0.45423713,83.169,83.146,0.47922482]
[1770768262303,0.45423713,83.169,83.148,0.47922482]
[1770768263691,0.46227299,83.176,83.15,0.49023457]
[1770768264195,0.1,83.19,83.153,0.49023457]
[1770768264373,0.46227299,83.209,83.159,0.49023457]
[1770768264791,0.46227299,83.208,83.159,0.49023457]
[1770768264999,0.46227299,83.208,83.151,0.49023457]
[1770768265188,0.46227299,83.205,83.15,48.04]
[1770768265995,0.46227299,83.2,83.113,0.49023457]
[1770768266199,0.46227299,83.2,83.134,12.02872049]
[1770768267301,0.46227299,83.2,83.129,0.49023457]
[1770768267302,0.46227299,83.195,83.13,12.02935161]
[1770768267494,5.13032502,83.191,83.13,12.02935161]
[1770768267697,5.13032502,83.191,83.117,30.07779204]
[1770768267698,0.46227299,83.19,83.118,0.49023457]
[1770768268076,0.46227299,83.19,83.121,12.03055429]
[1770768268395,0.46227299,83.19,83.121,12.52078886]
[1770768268580,0.46227299,83.19,83.121,12.03055429]
[1770768268782,0.46227299,83.19,83.122,0.49023457]
[1770768269499,0.46227299,83.185,83.125,0.49023457]
[1770768271388,0.46227299,83.183,83.127,0.49023457]
[1770768272592,0.46227299,83.181,83.129,0.49023457]
[1770768273907,0.46227299,83.179,83.131,0.49023457]
[1770768274207,0.46227299,83.187,83.131,0.49023457]
[1770768276287,0.46227299,83.185,83.133,0.49023457]
[1770768278188,0.46227299,83.183,83.135,0.49023457]
[1770768279691,0.46227299,83.181,83.137,0.49023457]
[1770768282414,0.46227299,83.179,83.139,0.49023457]
[1770768285606,0.46227299,83.185,83.141,0.49023457]
[1770768287601,0.46227299,83.177,83.142,12.0276154]
[1770768288202,0.46227299,83.169,83.142,12.0276154]
[1770768288823,0.46227299,83.169,83.143,0.49023457]
[1770768290926,0.48378828,83.167,83.139,48.04]
[1770768291117,0.48378828,83.167,83.123,0.48712484]
[1770768291324,0.48378828,83.159,83.127,12.02966553]
[1770768291631,0.48378828,83.159,83.123,0.48712484]
[1770768293507,0.48378828,83.166,83.131,0.48712484]
[1770768295626,0.48378828,83.164,83.133,0.48712484]
[1770768297204,0.48378828,83.164,83.132,12.02906221]
[1770768297205,0.48378828,83.197,83.151,0.48712484]
[1770768297407,0.48378828,83.208,83.171,0.48712484]
[1770768297715,0.48378828,83.206,83.173,0.48712484]
[1770768299008,0.48378828,83.206,83.17,3.55918526]
[1770768299212,0.48378828,83.199,83.168,12.02373477]
[1770768300126,0.48378828,83.197,83.161,12.51195046]
[1770768300422,0.48378828,83.197,83.158,48.04]
[1770768300604,42.06831893,83.198,83.16,3.55918526]
[1770768300605,0.48378828,83.189,83.16,3.55918526]
[1770768302027,12.02096456,83.188,83.16,3.55918526]
[1770768302328,0.48378828,83.208,83.171,0.48712484]
[1770768304125,0.48378828,83.206,83.173,0.48712484]
[1770768304512,0.48378828,83.206,83.181,0.48712484]
[1770768305548,0.1,83.21,83.181,0.48712484]
[1770768305909,0.48378828,83.22,83.19,3.55918526]
[1770768306118,0.48378828,83.22,83.162,48.09866664]
[1770768306119,0.1,83.23,83.203,0.48712484]
[1770768306706,0.58378828,83.23,83.203,0.48712484]
[1770768307722,0.58378828,83.23,83.205,0.48712484]
[1770768307919,0.1,83.23,83.211,0.48712484]
[1770768308109,0.1,83.23,83.204,12.01865294]
[1770768308110,0.48378828,83.237,83.204,12.50577778]
[1770768308314,0.48378828,83.237,83.205,0.48712484]
[1770768309021,0.48378828,83.237,83.21,3.55918526]
[1770768309222,0.48378828,83.237,83.211,0.48712484]
[1770768310125,0.1,83.24,83.213,0.48712484]
[1770768310437,0.1,83.24,83.221,0.48712484]
[1770768313341,0.48378828,83.239,83.216,48.02]
[1770768313720,0.48378828,83.239,83.215,12.50412596]
[1770768313919,0.48378828,83.239,83.215,12.01700112]
[1770768314254,0.48378828,83.239,83.218,12.01651049]
[1770768314437,0.1,83.24,83.222,0.48712484]
[1770768315834,0.1,83.24,83.224,0.48712484]
[1770768317932,0.58378828,83.24,83.221,12.01614752]
[1770768318346,0.58378828,83.24,83.216,12.0168295]
[1770768318530,0.58378828,83.24,83.21,48.02]
[1770768319249,0.48378828,83.239,83.21,48.02]
[1770768320223,0.48904517,83.237,83.207,12.01817032]
[1770768320526,0.48904517,83.237,83.2,12.01918552]
[1770768321043,0.48904517,83.237,83.2,12.51621775]
[1770768321446,0.48904517,83.237,83.2,16.07540301]
[1770768321647,0.48904517,83.235,83.2,16.07540301]
[1770768322040,0.48904517,83.235,83.201,0.49703223]
[1770768322830,0.48904517,83.235,83.211,0.49703223]
[1770768323142,12.01403238,83.236,83.211,0.49703223]
[1770768323338,12.113459,83.24,83.211,0.49703223]
[1770768323841,0.59241477,83.24,83.213,0.46241956]
[1770768326850,0.49241477,83.261,83.231,0.46241956]
[1770768327553,0.49241477,83.279,83.251,0.46241956]
[1770768328645,0.49241477,83.277,83.252,0.46241956]
[1770768331869,6.25453977,83.311,83.244,48.0]
[1770768331870,0.49241477,83.275,83.244,48.0]
[1770768332361,0.49241477,83.269,83.244,48.0]
[1770768332851,0.49241477,83.267,83.244,48.0]
[1770768333234,0.49241477,83.267,83.241,0.46241956]
[1770768333439,0.49241477,83.267,83.245,0.46241956]
[1770768333857,0.49241477,83.271,83.24,12.01338263]
[1770768334240,0.49241477,83.271,83.241,0.46241956]
[1770768334857,0.49241477,83.271,83.244,0.46241956]
[1770768335232,12.00912693,83.27,83.246,0.46241956]
[1770768335459,0.49241477,83.269,83.246,0.46241956]
[1770768335960,0.49241477,83.277,83.246,0.46241956]
[1770768337462,0.49241477,83.275,83.248,0.46241956]
[1770768338442,0.49241477,83.275,83.249,12.0121563]
[1770768338757,0.49241477,83.273,83.239,48.0]
[1770768339062,0.49241477,83.273,83.25,0.46241956]
[1770768339245,0.49241477,83.288,83.25,0.46241956]
[1770768339443,12.00638739,83.289,83.26,3.55918526]
[1770768339652,12.00584774,83.293,83.261,0.46241956]
[1770768339960,0.49241477,83.305,83.271,0.46241956]
[1770768340344,0.49241477,83.305,83.272,12.0088385]
[1770768340536,0.49241477,83.303,83.273,0.46241956]
[1770768341659,0.49241477,83.289,83.259,0.46241956]
[1770768342370,0.49241477,83.287,83.26,0.46241956]
[1770768343563,0.49241477,83.287,83.26,12.47298886]
[1770768343979,0.49241477,83.279,83.252,47.98]
[1770768344667,0.49241477,83.277,83.252,47.98]
[1770768346757,0.49241477,83.275,83.252,47.98]
[1770768346961,0.49241477,83.269,83.252,47.98]
[1770768347152,0.49241477,83.259,83.228,0.46241956]
[1770768347554,0.49241477,83.259,83.23,12.01488429]
[1770768347760,0.49241477,83.259,83.23,12.47730385]
[1770768347965,0.49241477,83.259,83.231,0.46241956]
[1770768348162,0.49241477,83.259,83.224,47.98]
[1770768348163,0.49241477,83.299,83.254,0.46241956]
[1770768348371,0.49241477,83.299,83.256,0.46241956]
[1770768348758,0.49241477,83.299,83.261,0.46241956]
[1770768348953,0.49241477,83.297,83.271,0.46241956]
[1770768349476,12.00454207,83.302,83.271,0.46241956]
[1770768349649,12.00392244,83.307,83.271,0.46241956]
[1770768349854,0.49241477,83.306,83.271,0.46241956]
[1770768351257,0.49241477,83.306,83.273,0.45104417]
[1770768351462,0.48528184,83.304,83.273,0.45104417]
[1770768352479,0.48528184,83.304,83.281,0.45104417]
[1770768352860,12.00360521,83.309,83.281,0.45104417]
[1770768353260,12.00379319,83.307,83.282,0.45104417]
[1770768354056,0.48528184,83.306,83.282,0.45104417]
[1770768355484,0.48528184,83.306,83.283,12.00725238]
[1770768355780,12.00379319,83.307,83.284,0.45104417]
[1770768356371,0.48528184,83.306,83.284,0.45104417]
[1770768357202,12.00379319,83.307,83.284,0.45104417]
[1770768359068,0.48528184,83.314,83.284,0.45104417]
[1770768359296,0.48528184,83.314,83.286,0.45104417]
[1770768359477,3.54713616,83.31,83.277,12.45912473]
[1770768359790,0.48528184,83.289,83.255,47.98]
[1770768360084,0.48528184,83.289,83.256,0.45104417]
[1770768360276,0.48528184,83.269,83.242,0.45104417]
[1770768360663,0.48528184,83.269,83.244,12.01282743]
[1770768360863,0.48528184,83.269,83.247,12.01240156]
[1770768361065,0.48528184,83.269,83.248,0.45104417]
[1770768361365,12.00941538,83.268,83.248,0.45104417]
[1770768363168,0.48528184,83.267,83.248,0.45104417]
[1770768363875,0.48528184,83.267,83.236,47.98]
[1770768364068,0.48528184,83.267,83.237,12.01374904]
[1770768365375,0.48528184,83.265,83.237,12.01374904]
[1770768365770,0.48528184,83.265,83.238,0.45104417]
[1770768368067,0.48528184,83.265,83.24,0.45104417]
[1770768368281,102.7,83.292,83.24,0.45104417]
[1770768368282,0.48528184,83.272,83.241,0.45104417]
[1770768370691,0.48528184,83.259,83.238,47.98]
[1770768371266,0.48528184,83.259,83.238,48.43104417]
[1770768371686,0.48528184,83.259,83.239,0.45104417]
[1770768372273,12.01085781,83.258,83.239,0.45104417]
[1770768375497,12.00959482,83.267,83.241,0.45104417]
[1770768375689,0.48528184,83.268,83.241,0.45104417]
[1770768376003,12.49484144,83.267,83.241,0.45104417]
[1770768376171,0.48528184,83.266,83.241,0.45104417]
[1770768377771,0.48528184,83.264,83.238,47.98]
[1770768377975,0.48528184,83.264,83.239,12.013525]
[1770768378177,0.48528184,83.264,83.238,47.98]
[1770768378696,0.48528184,83.259,83.238,47.98]
[1770768378871,0.48528184,83.259,83.219,30.04096012]
[1770768378872,0.48528184,83.249,83.211,0.45104417]
[1770768379076,0.48528184,83.239,83.213,0.45104417]
[1770768379576,42.03446825,83.265,83.213,0.45104417]
[1770768379577,0.48528184,83.259,83.213,0.45104417]
[1770768379890,0.48528184,83.249,83.215,0.45104417]
[1770768380997,0.48528184,83.249,83.212,30.04374369]
[1770768380998,0.47568489,83.247,83.217,0.46783369]
[1770768381367,12.01106571,83.257,83.221,0.46783369]
[1770768381572,0.47568489,83.256,83.221,0.46783369]
[1770768382692,0.47568489,83.256,83.223,0.46783369]
[1770768385980,0.47018509,83.249,83.222,48.46198608]
[1770768386285,0.47018509,83.249,83.223,0.48198608]
[1770768388599,0.47018509,83.247,83.222,47.98]
[1770768388797,0.47018509,83.247,83.222,48.46198608]
[1770768389584,0.47018509,83.247,83.222,47.98]
[1770768389886,0.47018509,83.247,83.223,0.48198608]
[1770768391304,0.47018509,83.253,83.224,0.48198608]
[1770768391602,0.47018509,83.249,83.224,0.48198608]
[1770768393305,12.01230059,83.248,83.224,0.48198608]
[1770768393507,0.47018509,83.249,83.226,0.48198608]
[1770768393806,12.48245366,83.249,83.226,0.48198608]
[1770768394408,12.01226857,83.249,83.226,0.48198608]